bitfinex-derivatives/quotes_SOLF0:USTF0_20241224
["timestamp","ask_amount","ask_price","bid_price","bid_amount"]
[1735011970158,17.97576236,189.21,189.15,2.6471]
[1735011972251,17.97576236,189.21,189.16,2.647]
[1735011975359,13.68576236,189.24,189.19,2.6466]
[1735011975660,13.67026236,189.27,189.15,3.24]
[1735011975861,13.67026236,189.27,189.16,3.0293]
[1735011976455,2.6457,189.26,189.21,2.6462]
[1735011976858,13.67026236,189.27,189.16,3.0293]
[1735011977059,12.08936236,189.27,189.16,3.0293]
[1735011977254,1.5371,189.28,189.2,12.08936236]
[1735011977460,1.5499,189.32,189.2,15.32936236]
[1735011978048,2.645,189.31,189.24,2.6459]
[1735011978250,12.08936236,189.31,189.24,2.6459]
[1735011978460,12.08936236,189.31,189.2,15.32936236]
[1735011978662,14.73436236,189.31,189.23,2.646]
[1735011978859,14.73436236,189.31,189.2,15.32936236]
[1735011979259,14.73436236,189.31,189.21,4.92639737]
[1735011979459,14.73436236,189.31,189.2,15.32936236]
[1735011979662,14.73436236,189.31,189.25,2.6457]
[1735011979962,12.08936236,189.31,189.2,15.32936236]
[1735011980160,12.08936236,189.31,189.21,4.92876557]
[1735011980557,12.08936236,189.31,189.2,15.32936236]
[1735011980760,12.08936236,189.31,189.22,4.93067033]
[1735011980962,12.08936236,189.31,189.26,2.6456]
[1735011981863,14.73436236,189.31,189.24,2.6458]
[1735011982063,14.73436236,189.31,189.2,15.32936236]
[1735011982362,12.08936236,189.31,189.24,2.6459]
[1735011983463,2.6452,189.29,189.24,2.6459]
[1735011984059,12.08936236,189.31,189.2,15.32936236]
[1735011984457,12.08936236,189.31,189.21,4.93992392]
[1735011984658,2.6456,189.26,189.19,2.6465]
[1735011984865,12.08936236,189.28,189.16,3.0293]
[1735011985167,1.647,189.27,189.16,3.0293]
[1735011985463,2.6458,189.26,189.19,2.6466]
[1735011985661,1.647,189.27,189.16,3.0293]
[1735011986257,1.647,189.27,189.21,2.6462]
[1735011986659,1.647,189.27,189.16,3.0293]
[1735011986863,1.647,189.27,189.23,2.646]
[1735011988664,1.647,189.27,189.17,12.08936236]
[1735011988665,3.26,189.31,189.2,3.26]
[1735011988870,3.26,189.31,189.2,15.34936236]
[1735011989070,3.26,189.31,189.21,4.94579164]
[1735011989369,3.26,189.31,189.2,15.34936236]
[1735011989970,2.6452,189.3,189.24,2.6459]
[1735011990166,7.73222939,189.29,189.22,7.73222939]
[1735011990366,3.26,189.31,189.22,7.73222939]
[1735011990569,7.73222939,189.3,189.22,7.73222939]
[1735011990768,7.73222939,189.3,189.23,4.94614664]
[1735011990965,7.73222939,189.3,189.22,7.73222939]
[1735011991468,7.73222939,189.3,189.23,4.94779508]
[1735011991865,7.73222939,189.3,189.22,7.73222939]
[1735011992470,7.73222939,189.3,189.27,2.6455]
[1735011995175,7.73222939,189.3,189.22,7.73222939]
[1735011995377,10.37732939,189.3,189.25,2.6457]
[1735011999374,2.6449,189.32,189.27,2.6455]
[1735011999580,10.99812939,189.35,189.28,7.73222939]
[1735011999875,7.73222939,189.33,189.26,7.73222939]
[1735012000070,7.73222939,189.31,189.25,3.26]
[1735012000474,10.37722939,189.31,189.26,2.6455]
[1735012000670,7.73222939,189.31,189.26,2.6455]
[1735012000875,7.73222939,189.31,189.25,3.26]
[1735012002676,2.6451,189.3,189.25,5.9058]
[1735012003282,2.6451,189.3,189.25,2.6458]
[1735012006081,7.73222939,189.31,189.23,7.73222939]
[1735012006275,7.73222939,189.32,189.25,7.73222939]
[1735012007481,7.73222939,189.32,189.28,2.6453]
[1735012013290,2.6447,189.33,189.28,2.6453]
[1735012013492,10.37692939,189.33,189.28,2.6453]
[1735012013891,7.73222939,189.31,189.28,2.6453]
[1735012014586,10.37722939,189.31,189.27,2.6455]
[1735012017197,2.6448,189.33,189.28,2.6454]
[1735012017400,7.73222939,189.31,189.28,2.6454]
[1735012019394,7.73222939,189.31,189.23,3.1906]
[1735012019698,2.6451,189.3,189.24,4.96164281]
[1735012019901,2.6451,189.3,189.25,4.96164281]
[1735012020302,2.6451,189.3,189.26,4.96164281]
[1735012020493,2.6451,189.3,189.25,2.6458]
[1735012020697,7.73222939,189.32,189.25,7.73222939]
[1735012021105,7.73222939,189.32,189.26,4.96214852]
[1735012021396,7.73222939,189.32,189.28,2.6453]
[1735012021991,10.37702939,189.32,189.27,2.6455]
[1735012022300,10.37702939,189.32,189.28,4.96443236]
[1735012022502,7.73222939,189.3,189.28,4.96443236]
[1735012022692,7.73222939,189.3,189.16,184.13747826]
[1735012022998,7.73222939,189.23,189.21,4.96726826]
[1735012023195,10.37832939,189.23,189.21,4.96726826]
[1735012023604,10.37832939,189.23,189.18,57.95784904]
[1735012023898,2.6456,189.27,189.2,7.73222939]
[1735012024102,10.37782939,189.27,189.21,4.96788177]
[1735012024299,1.5314,189.28,189.22,7.73222939]
[1735012025002,7.73222939,189.29,189.22,7.73222939]
[1735012025305,13.61732939,189.31,189.25,2.6457]
[1735012025801,13.61732939,189.31,189.24,7.73222939]
[1735012025999,7.73222939,189.31,189.24,7.73222939]
[1735012026204,7.73222939,189.33,189.26,7.73222939]
[1735012026701,7.73222939,189.34,189.28,7.73222939]
[1735012027496,7.73222939,189.34,189.29,2.6451]
[1735012027799,7.73222939,189.36,189.28,7.73222939]
[1735012028303,7.73222939,189.36,189.31,2.6448]
[1735012032006,7.73222939,189.34,189.28,7.73222939]
[1735012033406,7.73222939,189.34,189.3,2.6451]
[1735012034300,7.73222939,189.34,189.27,3.2187]
[1735012034495,10.37692939,189.34,189.28,2.6453]
[1735012035300,7.73222939,189.34,189.27,10.95092939]
[1735012035501,7.73222939,189.34,189.3,2.645]
[1735012036306,2.6444,189.35,189.3,2.645]
[1735012037903,7.73222939,189.36,189.3,2.645]
[1735012038105,10.37652939,189.36,189.3,2.645]
[1735012038300,1.59883227,189.37,189.33,2.6445]
[1735012038503,7.73222939,189.38,189.33,2.6445]
[1735012039204,2.6437,189.41,189.35,2.6443]
[1735012039409,7.73222939,189.39,189.35,2.6443]
[1735012041007,10.37602939,189.39,189.34,2.6445]
[1735012042008,2.6437,189.41,189.35,7.73222939]
[1735012042206,9.32493188,189.46,189.39,7.73222939]
[1735012042510,1.59270249,189.46,189.39,7.73222939]
[1735012042715,7.73222939,189.45,189.39,7.73222939]
[1735012043013,1.59270249,189.46,189.39,7.73222939]
[1735012043208,7.73222939,189.45,189.39,7.73222939]
[1735012043406,10.37532939,189.45,189.39,10.37602939]
[1735012044514,10.37532939,189.45,189.39,2.6438]
[1735012045909,7.73222939,189.41,189.37,2.644]
[1735012046114,1.5907,189.45,189.31,10.97222939]
[1735012046115,7.73222939,189.39,189.31,10.97222939]
[1735012046811,7.73222939,189.39,189.31,3.24]
[1735012047014,7.73222939,189.39,189.31,10.97222939]
[1735012047517,7.73222939,189.39,189.34,2.6445]
[1735012047810,7.73222939,189.37,189.27,3.2187]
[1735012048004,7.73222939,189.35,189.29,7.73222939]
[1735012048205,7.73222939,189.35,189.3,2.6451]
[1735012049317,1.6582,189.37,189.31,7.73222939]
[1735012049518,7.73222939,189.39,189.31,7.73222939]
[1735012050014,7.73222939,189.39,189.33,7.73222939]
[1735012050218,7.73222939,189.42,189.35,7.73222939]
[1735012051422,10.37572939,189.42,189.36,2.6442]
[1735012052223,2.6435,189.42,189.36,2.6442]
[1735012053823,2.6435,189.42,189.37,2.6441]
[1735012056322,3.24,189.5,189.35,12.06580141]
[1735012056522,12.06580141,189.5,189.38,12.06580141]
[1735012056823,2.6426,189.48,189.38,15.30580141]
[1735012057523,2.6426,189.48,189.42,2.6433]
[1735012058021,12.06580141,189.5,189.4,2.6437]
[1735012058220,12.06580141,189.47,189.38,3.24]
[1735012058427,0.79694695,189.46,189.35,3.24]
[1735012058726,4.03694695,189.46,189.35,3.24]
[1735012058921,2.43434695,189.45,189.35,3.24]
[1735012059124,1.6374,189.45,189.35,3.24]
[1735012060420,2.6433,189.43,189.38,2.644]
[1735012073535,2.6433,189.43,189.39,2.6438]
[1735012073736,4.2805,189.45,189.35,12.06580141]
[1735012074038,4.2805,189.45,189.4,2.6436]
[1735012074437,1.5246,189.51,189.39,7.71815534]
[1735012074735,7.71815534,189.47,189.39,7.71815534]
[1735012075135,7.71815534,189.45,189.39,7.71815534]
[1735012076528,7.71815534,189.45,189.41,2.6434]
[1735012076942,7.71815534,189.45,189.37,7.71815534]
[1735012077138,1.5879,189.5,189.34,6.3727]
[1735012077139,7.71815534,189.43,189.34,6.3727]
[1735012077340,7.71815534,189.43,189.35,7.71815534]
[1735012078533,10.36145534,189.43,189.38,2.6438]
[1735012079140,7.71815534,189.44,189.39,2.6437]
[1735012079837,7.71815534,189.42,189.37,2.644]
[1735012081035,7.71815534,189.38,189.31,14.36763672]
[1735012081227,7.71815534,189.36,189.31,22.08579206]
[1735012081431,7.71815534,189.36,189.31,14.36763672]
[1735012081634,10.36245534,189.36,189.31,14.36763672]
[1735012081834,10.36245534,189.36,189.3,2.645]
[1735012082136,7.71815534,189.34,189.3,2.645]
[1735012084140,7.71815534,189.36,189.3,2.645]
[1735012084339,2.6444,189.35,189.3,2.645]
[1735012086743,7.71815534,189.32,189.21,15.88133801]
[1735012086943,7.71815534,189.3,189.24,10.97815534]
[1735012087133,7.71815534,189.3,189.24,7.71815534]
[1735012087843,7.71815534,189.3,189.26,2.6456]
[1735012088042,7.71815534,189.28,189.21,7.71815534]
[1735012088741,7.71815534,189.26,189.23,2.646]
[1735012089448,7.71815534,189.28,189.23,2.646]
[1735012089635,7.71815534,189.28,189.22,7.71815534]
[1735012089839,3.26,189.31,189.26,7.71815534]
[1735012090036,10.83295534,189.34,189.26,7.71815534]
[1735012090440,3.1148,189.34,189.26,7.71815534]
[1735012090641,10.83295534,189.34,189.26,7.71815534]
[1735012091041,10.83295534,189.34,189.28,2.6453]
[1735012091440,3.1148,189.34,189.28,2.6453]
[1735012091648,10.83295534,189.34,189.28,2.6453]
[1735012092147,3.1148,189.34,189.28,2.6453]
[1735012092847,5.7593,189.34,189.28,2.6453]
[1735012095550,5.7594,189.34,189.29,2.6452]
[1735012096853,5.7594,189.34,189.27,2.6455]
[1735012096854,2.6447,189.33,189.27,2.6455]
[1735012097155,14.72025693,189.33,189.27,2.6455]
[1735012098149,14.72025693,189.33,189.23,3.26]
[1735012098150,2.6449,189.32,189.26,2.6456]
[1735012098751,12.07555693,189.33,189.27,2.6454]
[1735012098950,12.07555693,189.33,189.23,3.26]
[1735012099156,3.1148,189.34,189.23,3.26]
[1735012099654,5.7593,189.34,189.26,2.6456]
[1735012099849,5.7593,189.34,189.24,12.07555693]
[1735012100154,1.5122,189.34,189.24,12.07555693]
[1735012100948,12.07555693,189.33,189.25,2.6458]
[1735012101258,15.33555693,189.33,189.23,3.26]
[1735012101454,2.6454,189.29,189.23,2.6459]
[1735012101752,15.33555693,189.33,189.21,12.07555693]
[1735012101952,3.26,189.33,189.28,2.6452]
[1735012102252,3.26,189.33,189.2,55.94558278]
[1735012102253,3.26,189.41,189.27,12.07555693]
[1735012102444,12.87281083,189.4,189.27,12.07555693]
[1735012102651,12.07555693,189.4,189.3,12.07555693]
[1735012102853,12.07555693,189.4,189.3,15.33555693]
[1735012103354,12.07555693,189.4,189.34,2.6444]
[1735012103849,14.71925693,189.4,189.34,2.6444]
[1735012104352,13.57235693,189.43,189.36,2.6442]
[1735012104552,41.43747219,189.53,189.3,15.33555693]
[1735012104753,12.07555693,189.44,189.3,15.33555693]
[1735012105256,12.07555693,189.41,189.3,3.26]
[1735012105754,2.644,189.38,189.33,2.6447]
[1735012105948,15.33555693,189.41,189.33,2.6447]
[1735012107353,2.644,189.38,189.33,2.6447]
[1735012107742,2.644,189.38,189.29,1.5201]
[1735012107948,2.6441,189.37,189.31,2.6448]
[1735012109544,2.6444,189.35,189.28,3.3003]
[1735012110450,2.6442,189.37,189.31,2.6449]
[1735012110655,2.6442,189.37,189.28,3.3003]
[1735012112455,2.6442,189.37,189.31,2.6448]
[1735012113651,12.07555693,189.38,189.31,2.6448]
[1735012113856,12.07555693,189.38,189.29,2.6451]
[1735012114858,2.6445,189.35,189.3,2.6451]
[1735012115555,2.6442,189.37,189.31,2.645]
[1735012115756,15.33555693,189.41,189.28,3.3003]
[1735012116058,0.79722238,189.4,189.28,3.3003]
[1735012116261,15.33555693,189.41,189.28,3.3003]
[1735012116455,3.44100952,189.4,189.29,12.07555693]
[1735012116758,2.6438,189.4,189.29,12.07555693]
[1735012117863,2.6439,189.39,189.34,2.6444]
[1735012122164,7.72671177,189.36,189.32,2.6447]
[1735012122462,7.72671177,189.36,189.29,7.72671177]
[1735012123464,10.37111177,189.36,189.31,2.6449]
[1735012125861,7.72671177,189.39,189.34,2.6444]
[1735012126864,1.6263,189.44,189.34,2.6444]
[1735012127064,7.72671177,189.39,189.34,2.6444]
[1735012127563,10.37061177,189.39,189.34,2.6444]
[1735012128165,12.06848759,189.42,189.29,12.06848759]
[1735012128373,2.6436,189.41,189.36,2.6442]
[1735012130869,12.06848759,189.42,189.38,2.6439]
[1735012131263,2.6434,189.43,189.38,2.6439]
[1735012131567,1.6263,189.44,189.34,3.36]
[1735012131768,12.06848759,189.48,189.35,15.27548759]
[1735012131967,12.06848759,189.51,189.38,12.06848759]
[1735012132166,0.7967802,189.5,189.38,12.06848759]
[1735012132770,12.06848759,189.51,189.38,12.06848759]
[1735012134572,2.6423,189.5,189.44,2.6431]
[1735012136077,2.6426,189.48,189.42,2.6433]
[1735012136274,12.06848759,189.51,189.42,2.6433]
[1735012136574,12.06848759,189.48,189.37,3.36]
[1735012137672,12.06848759,189.48,189.41,2.6435]
[1735012138576,2.6427,189.47,189.41,2.6435]
[1735012141679,2.643,189.45,189.39,2.6437]
[1735012142480,2.6428,189.47,189.41,2.6435]
[1735012143182,2.6428,189.47,189.42,2.6434]
[1735012143381,12.06848759,189.48,189.42,2.6434]
[1735012143877,5.9425,189.49,189.42,2.6434]
[1735012144274,3.3,189.49,189.44,2.6431]
[1735012144581,2.6424,189.5,189.38,12.06848759]
[1735012145284,2.6424,189.5,189.44,2.643]
[1735012145783,2.6424,189.49,189.44,2.643]
[1735012145983,12.06848759,189.48,189.4,2.6436]
[1735012146284,15.36848759,189.48,189.35,6.507]
[1735012146483,3.3,189.48,189.44,2.6431]
[1735012146783,12.06848759,189.51,189.41,3.3]
[1735012147082,14.71068759,189.51,189.41,3.3]
[1735012147483,12.06848759,189.51,189.41,3.3]
[1735012147688,12.06848759,189.48,189.35,15.27548759]
[1735012147879,12.06848759,189.45,189.35,3.207]
[1735012148382,7.7217872,189.42,189.38,2.644]
[1735012149384,7.7217872,189.42,189.35,10.9287872]
[1735012149686,3.3,189.49,189.35,10.9287872]
[1735012149885,7.7217872,189.43,189.35,10.9287872]
[1735012151486,7.7217872,189.43,189.38,2.6439]
[1735012152585,10.3650872,189.43,189.38,2.6439]
[1735012153786,7.7217872,189.41,189.34,3.3]
[1735012153988,4.7526,189.52,189.34,2.6444]
[1735012153989,7.7217872,189.39,189.34,2.6444]
[1735012155485,2.6437,189.4,189.34,2.6444]
[1735012155687,10.3654872,189.4,189.32,7.7217872]
[1735012155884,10.3654872,189.4,189.35,2.6444]
[1735012156385,4.201,189.42,189.34,7.7217872]
[1735012156585,11.9227872,189.42,189.34,7.7217872]
[1735012156786,9.2792872,189.42,189.34,7.7217872]
[1735012157988,2.6437,189.41,189.35,2.6443]
[1735012158190,9.2792872,189.42,189.35,2.6443]
[1735012158891,7.7217872,189.4,189.33,7.7217872]
[1735012159091,2.6439,189.39,189.34,2.6445]
[1735012163087,7.7217872,189.38,189.29,3.2211]
[1735012163292,7.7217872,189.36,189.32,2.6447]
[1735012164597,7.7217872,189.41,189.34,7.7217872]
[1735012165095,12.3777872,189.42,189.34,7.7217872]
[1735012165295,10.8225872,189.42,189.34,7.7217872]
[1735012166598,13.4660872,189.42,189.37,2.6441]
[1735012167097,5.7443,189.42,189.37,2.6441]
[1735012167299,7.7217872,189.44,189.36,7.7217872]
[1735012167497,10.3649872,189.44,189.38,2.6439]
[1735012167697,10.3649872,189.44,189.38,10.3656872]
[1735012169301,7.7217872,189.44,189.38,7.7217872]
[1735012169500,7.7217872,189.48,189.4,7.7217872]
[1735012169701,10.8420872,189.49,189.42,7.7217872]
[1735012170299,3.1203,189.49,189.42,7.7217872]
[1735012170602,13.4844872,189.49,189.43,2.6433]
[1735012171003,5.7627,189.49,189.43,2.6433]
[1735012171302,13.4844872,189.49,189.43,2.6433]
[1735012171497,5.7627,189.49,189.43,2.6433]
[1735012172003,7.7217872,189.47,189.43,2.6433]
[1735012180102,7.7217872,189.47,189.38,3.32]
[1735012180408,7.7217872,189.45,189.4,2.6437]
[1735012181606,10.3647872,189.45,189.4,2.6437]
[1735012181805,7.7217872,189.45,189.38,7.7217872]
[1735012182004,7.7217872,189.43,189.36,10.9994872]
[1735012182308,10.3651872,189.43,189.36,7.7217872]
[1735012182612,7.7217872,189.43,189.37,2.6441]
[1735012183307,7.7217872,189.41,189.34,7.7217872]
[1735012183504,2.6435,189.42,189.36,2.6441]
[1735012183809,10.3652872,189.42,189.36,2.6441]
[1735012185011,10.3655872,189.4,189.34,10.3662872]
[1735012186107,2.644,189.38,189.32,11.0417872]
[1735012186312,10.3657872,189.38,189.32,11.0417872]
[1735012186509,10.3657872,189.38,189.32,7.7217872]
[1735012187513,10.3657872,189.38,189.33,2.6446]
[1735012189811,2.644,189.38,189.33,2.6446]
[1735012190214,7.7217872,189.39,189.32,7.7217872]
[1735012190512,2.6441,189.37,189.32,7.7217872]
[1735012191414,2.6441,189.37,189.32,10.3665872]
[1735012194711,7.7217872,189.39,189.26,3.0799]
[1735012194916,2.6443,189.36,189.3,7.7217872]
[1735012196417,2.6443,189.36,189.31,2.6449]
[1735012197917,1.6576,189.39,189.32,7.7217872]
[1735012198220,1.6576,189.39,189.26,3.0799]
[1735012198221,59.9853922,189.53,189.37,7.7217872]
[1735012198412,59.9853922,189.53,189.49,7.7217872]
[1735012198615,58.33525819,189.53,189.49,7.7217872]
[1735012198915,58.33525819,189.55,189.5,2.6423]
[1735012199115,66.05704539,189.55,189.47,7.7217872]
[1735012199924,7.7217872,189.55,189.47,7.7217872]
[1735012200420,7.7217872,189.55,189.48,2.6425]
[1735012200823,7.7217872,189.55,189.47,7.7217872]
[1735012201020,7.7217872,189.51,189.46,3.24]
[1735012201221,7.7217872,189.51,189.44,2.6431]
[1735012203024,10.3639872,189.51,189.43,7.7217872]
[1735012203917,7.7217872,189.51,189.43,7.7217872]
[1735012204115,2.6423,189.5,189.43,10.3650872]
[1735012209023,2.6423,189.5,189.44,2.6431]
[1735012209425,2.6421,189.52,189.45,7.7217872]
[1735012209725,2.6421,189.52,189.46,2.6428]
[1735012211330,1.5814,189.56,189.49,7.7217872]
[1735012211619,7.7217872,189.57,189.51,7.7217872]
[1735012212423,2.6412,189.59,189.53,10.3634872]
[1735012213622,1.555,189.63,189.53,10.9617872]
[1735012213826,0.79616964,189.62,189.56,2.6414]
[1735012214128,7.7217872,189.61,189.56,2.6414]
[1735012216829,2.6406,189.63,189.57,10.3630872]
[1735012217228,7.7217872,189.63,189.49,3.0269]
[1735012217424,7.7217872,189.61,189.55,2.6415]
[1735012218330,7.7217872,189.59,189.53,10.3635872]
[1735012218629,7.7217872,189.59,189.53,2.6418]
[1735012218831,7.7217872,189.59,189.51,7.7217872]
[1735012218832,3.24,189.62,189.51,7.7217872]
[1735012219130,7.7217872,189.6,189.55,2.6415]
[1735012219530,2.6408,189.61,189.55,2.6415]
[1735012219728,10.3625872,189.61,189.55,2.6415]
[1735012219927,2.6408,189.61,189.55,2.6415]
[1735012220128,10.3625872,189.61,189.55,2.6415]
[1735012221630,2.6412,189.58,189.53,7.7217872]
[1735012222430,2.6412,189.58,189.53,10.3636872]
[1735012222730,2.6413,189.57,189.51,7.7217872]
[1735012223035,7.7217872,189.57,189.49,9.2249872]
[1735012223329,3.24,189.62,189.49,7.7217872]
[1735012223330,10.3634872,189.55,189.49,7.7217872]
[1735012223824,10.3634872,189.55,189.5,2.6422]
[1735012224028,2.6418,189.54,189.49,7.7217872]
[1735012225435,2.6418,189.54,189.49,10.3641872]
[1735012225833,2.6418,189.54,189.48,4.8651]
[1735012225834,7.7217872,189.55,189.48,3.24]
[1735012226026,2.642,189.53,189.48,3.24]
[1735012226228,7.7217872,189.55,189.48,3.24]
[1735012226933,2.6421,189.52,189.48,3.24]
[1735012227630,2.6421,189.52,189.47,10.3643872]
[1735012228029,2.6422,189.51,189.47,10.3643872]
[1735012228837,2.6422,189.51,189.47,7.7217872]
[1735012229135,2.6422,189.51,189.45,10.3646872]
[1735012229533,2.6422,189.51,189.45,7.7217872]
[1735012229735,2.6422,189.51,189.46,2.6428]
[1735012230538,2.6422,189.51,189.45,7.7217872]
[1735012230738,2.642,189.52,189.47,10.3644872]
[1735012233042,7.7217872,189.53,189.45,7.7217872]
[1735012233241,2.6422,189.51,189.45,10.3646872]
[1735012233642,2.6422,189.51,189.45,7.7217872]
[1735012233842,2.6422,189.51,189.46,2.6428]
[1735012235249,10.3639872,189.51,189.46,2.6428]
[1735012235646,2.6422,189.51,189.46,2.6428]
[1735012236145,7.7217872,189.53,189.45,7.7217872]
[1735012236341,7.7217872,189.54,189.47,7.7217872]
[1735012236748,7.7217872,189.54,189.49,2.6424]
[1735012237548,7.7217872,189.52,189.45,7.7217872]
[1735012238346,2.6422,189.51,189.46,2.6428]
[1735012239848,7.7217872,189.52,189.43,7.7217872]
[1735012240050,7.7217872,189.52,189.45,2.643]
[1735012241454,10.3641872,189.5,189.45,2.643]
[1735012247453,7.7217872,189.48,189.41,3.32]
[1735012247650,7.7217872,189.42,189.33,88.51677356]
[1735012247859,7.7217872,189.42,189.35,7.7217872]
[1735012249455,7.7217872,189.42,189.37,2.6441]
[1735012250055,4.9336,189.46,189.37,7.7217872]
[1735012250358,10.3648872,189.45,189.39,7.7217872]
[1735012251463,10.3648872,189.45,189.4,2.6436]
[1735012252554,2.6428,189.47,189.42,2.6434]
[1735012253561,10.3645872,189.47,189.42,2.6434]
[1735012258971,2.643,189.46,189.4,2.6436]
[1735012259968,7.7217872,189.43,189.38,2.6438]
[1735012262171,10.3653872,189.41,189.36,2.6441]
[1735012263074,7.7217872,189.39,189.34,2.6444]
[1735012263571,7.7217872,189.37,189.3,66.53368965]
[1735012263771,7.7217872,189.37,189.32,2.6447]
[1735012265376,10.3658872,189.37,189.32,2.6447]
[1735012267682,7.7217872,189.41,189.34,7.7217872]
[1735012268075,7.7217872,189.41,189.36,2.6442]
[1735012268781,7.7217872,189.41,189.34,7.7217872]
[1735012268976,7.7217872,189.43,189.39,2.6438]
[1735012269170,7.7217872,189.43,189.31,1.5027]
[1735012269171,7.7217872,189.43,189.33,3.36]
[1735012269378,7.7217872,189.45,189.38,7.7217872]
[1735012270076,10.3648872,189.45,189.4,2.6437]
[1735012274481,7.7217872,189.43,189.36,7.7217872]
[1735012274781,7.7217872,189.43,189.34,9.3424872]
[1735012275581,7.7217872,189.43,189.39,2.6438]
[1735012277482,7.7217872,189.43,189.4,2.6437]
[1735012277883,2.643,189.45,189.4,2.6437]
[1735012278185,13.7246872,189.46,189.41,2.6434]
[1735012278682,7.7217872,189.46,189.42,2.6434]
[1735012279678,7.7217872,189.46,189.38,7.7217872]
[1735012279879,7.7217872,189.46,189.44,2.6431]
[1735012280584,7.7217872,189.46,189.4,7.7217872]
[1735012281184,7.7217872,189.48,189.41,2.6434]
[1735012281382,7.7217872,189.48,189.4,7.7217872]
[1735012284487,7.7217872,189.48,189.45,2.643]
[1735012288687,3.137,189.55,189.42,7.7217872]
[1735012288991,7.7217872,189.52,189.44,7.7217872]
[1735012289184,7.7217872,189.54,189.51,2.6422]
[1735012289890,7.7217872,189.54,189.52,2.642]
[1735012290389,1.5967,189.55,189.52,2.642]
[1735012292485,2.6411,189.59,189.5,7.7217872]
[1735012292691,4.9052,189.62,189.5,7.7217872]
[1735012292888,7.7217872,189.6,189.52,7.7217872]
[1735012293288,7.7217872,189.6,189.54,7.7217872]
[1735012293483,7.7217872,189.62,189.54,7.7217872]
[1735012293690,7.7217872,189.62,189.58,2.641]
[1735012293982,1.5112,189.63,189.56,7.7217872]
[1735012295084,1.5112,189.63,189.51,4.7212]
[1735012295292,7.7217872,189.62,189.57,2.6412]
[1735012296193,1.5112,189.63,189.57,2.6412]
[1735012296394,7.7217872,189.61,189.55,2.6415]
[1735012297394,7.7217872,189.61,189.57,2.6413]
[1735012297589,1.5112,189.63,189.51,4.7212]
[1735012297797,7.7217872,189.66,189.59,7.7217872]
[1735012298093,7.7217872,189.66,189.62,2.6406]
[1735012298293,7.7217872,189.66,189.59,7.7217872]
[1735012298691,7.7217872,189.64,189.6,2.6408]
[1735012298994,7.7217872,189.64,189.57,7.7217872]
[1735012299195,7.7217872,189.62,189.55,7.7217872]
[1735012300195,7.7217872,189.64,189.57,7.7217872]
[1735012301100,7.7217872,189.64,189.59,2.6409]
[1735012302801,11.0817872,189.66,189.59,7.7217872]
[1735012303097,7.7217872,189.66,189.59,7.7217872]
[1735012304100,7.7217872,189.66,189.62,2.6406]
[1735012309499,2.6402,189.65,189.59,2.641]
[1735012310804,2.6402,189.65,189.6,2.6409]
[1735012313098,2.6404,189.64,189.59,2.641]
[1735012313500,10.3621872,189.64,189.59,2.641]
[1735012314308,2.6404,189.64,189.59,2.641]
[1735012315910,2.6408,189.61,189.56,2.6414]
[1735012316110,7.7217872,189.63,189.55,7.7217872]
[1735012317412,2.6407,189.62,189.57,2.6413]
[1735012317813,7.7217872,189.61,189.57,2.6413]
[1735012318209,7.7217872,189.63,189.57,2.6413]
[1735012319508,2.6407,189.62,189.57,2.6413]
[1735012326517,2.6408,189.61,189.56,2.6415]
[1735012327830,7.7217872,189.61,189.53,7.7217872]
[1735012328028,7.7217872,189.59,189.52,57.80459613]
[1735012328226,7.7217872,189.57,189.52,57.80459613]
[1735012328628,1.5166,189.6,189.52,65.52638333]
[1735012329024,1.5166,189.6,189.54,2.6417]
[1735012329230,1.5166,189.6,189.52,7.7217872]
[1735012330128,4.1576,189.6,189.55,2.6415]
[1735012331622,7.7217872,189.59,189.55,2.6415]
[1735012332131,7.7217872,189.57,189.49,7.7217872]
[1735012332329,1.5166,189.6,189.49,7.7217872]
[1735012332330,7.7217872,189.55,189.49,7.7217872]
[1735012333530,7.7217872,189.55,189.52,2.6419]
[1735012335428,5.0349,189.58,189.46,2.6428]
[1735012335429,7.7217872,189.53,189.46,2.6428]
[1735012335733,7.7217872,189.49,189.46,2.6428]
[1735012335927,7.7217872,189.49,189.45,2.643]
[1735012340331,7.7217872,189.49,189.42,7.7217872]
[1735012340530,10.3643872,189.49,189.43,2.6431]